[Event "*** Titled Tuesday 3|2 Blitz"]
[Site "Chess.com"]
[Date "2015.06.02"]
[Round "8"]
[White "Hikaru"]
[Black "Konavets"]
[Result "1-0"]
[WhiteElo "2815"]
[BlackElo "2468"]
[TimeControl "180+2"]
[EndTime "12:39:57 PDT"]
[Termination "Hikaru won by resignation"]

1. e4 {[%clk 0:03:01.9]} 1... e5 {[%clk 0:02:59.8]} 2. Nf3 {[%clk 0:03:02.3]}
2... Nc6 {[%clk 0:03:01.1]} 3. Bc4 {[%clk 0:03:02.5]} 3... Bc5 {[%clk
0:03:01.5]} 4. d4 {[%clk 0:02:58.8]} 4... Nxd4 {[%clk 0:02:51]} 5. Nxe5 {[%clk
0:02:57.4]} 5... Qf6 {[%clk 0:02:39.9]} 6. Nd3 {[%clk 0:02:55]} 6... Bb6 {[%clk
0:02:40]} 7. Nc3 {[%clk 0:02:49.7]} 7... c6 {[%clk 0:02:38.8]} 8. e5 {[%clk
0:02:49.4]} 8... Qe7 {[%clk 0:02:36.8]} 9. O-O {[%clk 0:02:49.5]} 9... Kf8
{[%clk 0:02:22]} 10. Re1 {[%clk 0:02:43.5]} 10... Nh6 {[%clk 0:01:35.1]} 11. Ne4
{[%clk 0:02:42.9]} 11... Qh4 {[%clk 0:01:36.3]} 12. Bg5 {[%clk 0:02:22.4]} 12...
Qg4 {[%clk 0:01:36]} 13. c3 {[%clk 0:02:23.8]} 13... Qxd1 {[%clk 0:01:24.9]} 14.
Raxd1 {[%clk 0:02:25.7]} 14... Ne6 {[%clk 0:01:26.3]} 15. Bxe6 {[%clk
0:02:21.6]} 15... fxe6 {[%clk 0:01:27.2]} 16. Bxh6 {[%clk 0:02:21.5]} 16... gxh6
{[%clk 0:01:28.1]} 17. Nd6 {[%clk 0:02:23.4]} 17... Bc7 {[%clk 0:01:24.8]} 18.
Nf4 {[%clk 0:02:23.7]} 18... Bxd6 {[%clk 0:01:24.8]} 19. Rxd6 {[%clk 0:02:20.6]}
19... Rg8 {[%clk 0:01:26.3]} 20. Nh5 {[%clk 0:02:18.7]} 20... Rg5 {[%clk
0:01:16]} 21. Nf6 {[%clk 0:02:18.3]} 21... Ke7 {[%clk 0:01:17]} 22. f4 {[%clk
0:02:19.3]} 22... Rf5 {[%clk 0:01:16.3]} 23. Rd4 {[%clk 0:02:20.7]} 23... c5
{[%clk 0:01:10.3]} 24. Rde4 {[%clk 0:02:19]} 24... d5 {[%clk 0:01:06.8]} 25.
R4e3 {[%clk 0:02:19.3]} 25... Rxf4 {[%clk 0:01:04.7]} 26. Rh3 {[%clk 0:02:11.8]}
26... Bd7 {[%clk 0:00:22.9]} 27. Rg3 {[%clk 0:02:12.2]} 27... Be8 {[%clk
0:00:21.3]} 28. Rg7+ {[%clk 0:02:12.2]} 28... Bf7 {[%clk 0:00:22.3]} 29. Rxh7
{[%clk 0:02:13.5]} 29... d4 {[%clk 0:00:18.3]} 30. cxd4 {[%clk 0:02:14]} 30...
cxd4 {[%clk 0:00:20.2]} 31. Rc1 {[%clk 0:02:14.8]} 31... Rf8 {[%clk 0:00:07.7]}
32. Rc7+ {[%clk 0:02:13.5]} 32... Kd8 {[%clk 0:00:09.2]} 33. Rhxf7 {[%clk
0:02:12.8]} 33... Rxf7 {[%clk 0:00:10.6]} 34. Rxf7 {[%clk 0:02:14.2]} 34... Kc8
{[%clk 0:00:11.8]} 35. Rf8+ {[%clk 0:02:12.5]} 1-0

[Event "*** Titled Tuesday 3|2 Blitz"]
[Site "Chess.com"]
[Date "2015.06.02"]
[Round "8"]
[White "jlandaw"]
[Black "pedromartinez91"]
[Result "1-0"]
[WhiteElo "2332"]
[BlackElo "2122"]
[TimeControl "180+2"]
[EndTime "12:40:33 PDT"]
[Termination "jlandaw won by resignation"]

1. e4 {[%clk 0:02:59]} 1... c5 {[%clk 0:02:58.8]} 2. Nc3 {[%clk 0:02:51.1]} 2...
g6 {[%clk 0:02:58.3]} 3. g3 {[%clk 0:02:50.9]} 3... Bg7 {[%clk 0:02:58.7]} 4.
Bg2 {[%clk 0:02:52.3]} 4... Nc6 {[%clk 0:02:59.3]} 5. d3 {[%clk 0:02:53.6]} 5...
d6 {[%clk 0:03:00.1]} 6. f4 {[%clk 0:02:54.5]} 6... Rb8 {[%clk 0:03:01]} 7. a3
{[%clk 0:02:54.4]} 7... h5 {[%clk 0:02:59.7]} 8. Nf3 {[%clk 0:02:54.2]} 8... h4
{[%clk 0:03:00.2]} 9. Nxh4 {[%clk 0:02:54.8]} 9... Rxh4 {[%clk 0:03:00.6]} 10.
gxh4 {[%clk 0:02:56.7]} 10... e6 {[%clk 0:03:02.1]} 11. O-O {[%clk 0:02:27.1]}
11... Qxh4 {[%clk 0:02:56.4]} 12. Nb5 {[%clk 0:02:07]} 12... Kd7 {[%clk
0:02:52.3]} 13. Qe1 {[%clk 0:02:06.2]} 13... Qh8 {[%clk 0:02:51.3]} 14. e5
{[%clk 0:02:03.8]} 14... d5 {[%clk 0:02:51.5]} 15. Nd6 {[%clk 0:01:59.2]} 15...
Ke7 {[%clk 0:02:48.8]} 16. d4 {[%clk 0:01:15.9]} 16... cxd4 {[%clk 0:02:01]} 17.
c3 {[%clk 0:01:15.8]} 17... d3 {[%clk 0:02:00.3]} 18. c4 {[%clk 0:01:05.4]}
18... Nd4 {[%clk 0:01:58]} 19. Qa5 {[%clk 0:01:00.7]} 19... Ne2+ {[%clk
0:01:58.7]} 20. Kf2 {[%clk 0:00:53.4]} 20... Qh4+ {[%clk 0:01:58.2]} 21. Ke3
{[%clk 0:00:52.4]} 21... Bxe5 {[%clk 0:01:53.9]} 22. Qc7+ {[%clk 0:00:30.6]}
22... Bd7 {[%clk 0:01:53.3]} 23. fxe5 {[%clk 0:00:32.1]} 23... Nh6 {[%clk
0:01:37.9]} 24. Kxd3 {[%clk 0:00:25.2]} 24... dxc4+ {[%clk 0:01:34.3]} 25. Qxc4
{[%clk 0:00:25.6]} 25... Qxc4+ {[%clk 0:01:15]} 26. Nxc4 {[%clk 0:00:26.3]}
26... Bb5 {[%clk 0:01:15.4]} 27. Bxh6 {[%clk 0:00:24.9]} 27... Rd8+ {[%clk
0:01:15.9]} 28. Kxe2 {[%clk 0:00:22.5]} 28... Bxc4+ {[%clk 0:01:16.8]} 29. Ke1
{[%clk 0:00:24]} 29... Bxf1 {[%clk 0:01:15.4]} 30. Bg5+ {[%clk 0:00:24]} 30...
Ke8 {[%clk 0:01:15.8]} 31. Bxd8 {[%clk 0:00:24.7]} 31... Bxg2 {[%clk 0:01:16.8]}
32. Bf6 {[%clk 0:00:25.3]} 1-0

[Event "*** Titled Tuesday 3|2 Blitz"]
[Site "Chess.com"]
[Date "2015.06.02"]
[Round "8"]
[White "Keaton87"]
[Black "David_Klein"]
[Result "1-0"]
[WhiteElo "2402"]
[BlackElo "2270"]
[TimeControl "180+2"]
[EndTime "12:41:03 PDT"]
[Termination "Keaton87 won by resignation"]

1. d4 {[%clk 0:03:01.9]} 1... f5 {[%clk 0:03:00.1]} 2. Nf3 {[%clk 0:03:02]} 2...
Nf6 {[%clk 0:03:01.4]} 3. c4 {[%clk 0:03:03.1]} 3... g6 {[%clk 0:03:02.7]} 4. g3
{[%clk 0:03:04.4]} 4... Bg7 {[%clk 0:03:03.6]} 5. Bg2 {[%clk 0:03:05.8]} 5...
O-O {[%clk 0:03:03.9]} 6. O-O {[%clk 0:03:07]} 6... d6 {[%clk 0:03:05.2]} 7. Nc3
{[%clk 0:03:08.1]} 7... Nc6 {[%clk 0:03:06.2]} 8. d5 {[%clk 0:03:07.2]} 8... Ne5
{[%clk 0:03:07]} 9. Nxe5 {[%clk 0:03:08.2]} 9... dxe5 {[%clk 0:03:08.2]} 10. Be3
{[%clk 0:03:09.9]} 10... e6 {[%clk 0:03:07.6]} 11. dxe6 {[%clk 0:03:09.6]} 11...
Bxe6 {[%clk 0:02:53.8]} 12. Bxb7 {[%clk 0:03:09.2]} 12... Rb8 {[%clk 0:02:54.6]}
13. Bc6 {[%clk 0:03:04.5]} 13... Rxb2 {[%clk 0:02:53.2]} 14. Bc5 {[%clk
0:03:00.5]} 14... Qxd1 {[%clk 0:02:46.1]} 15. Rfxd1 {[%clk 0:03:02.4]} 15... Rc8
{[%clk 0:02:46.5]} 16. Bxa7 {[%clk 0:02:50.4]} 16... Bxc4 {[%clk 0:02:44.6]} 17.
a4 {[%clk 0:02:49.9]} 17... e4 {[%clk 0:02:43.1]} 18. Bd4 {[%clk 0:02:46.6]}
18... Ng4 {[%clk 0:02:41.5]} 19. a5 {[%clk 0:02:43]} 19... Ne5 {[%clk
0:02:40.7]} 20. Bd5+ {[%clk 0:02:30.3]} 20... Kh8 {[%clk 0:02:33.5]} 21. a6
{[%clk 0:02:01.4]} 21... Bxd5 {[%clk 0:02:25.3]} 22. Nxd5 {[%clk 0:02:02]} 22...
Rbb8 {[%clk 0:02:26.9]} 23. a7 {[%clk 0:01:35.4]} 23... Ra8 {[%clk 0:02:27.2]}
24. Rac1 {[%clk 0:01:37.1]} 24... Nf7 {[%clk 0:01:04.8]} 25. Nxc7 {[%clk
0:01:36]} 25... Bxd4 {[%clk 0:00:57.5]} 26. Nxa8 {[%clk 0:01:36.3]} 26... Rxa8
{[%clk 0:00:56.8]} 27. Rxd4 {[%clk 0:01:22.2]} 27... Rxa7 {[%clk 0:00:57.5]} 28.
Rdc4 {[%clk 0:01:22.8]} 28... Kg7 {[%clk 0:00:56.5]} 29. Rc7 {[%clk 0:01:23.8]}
29... Ra6 {[%clk 0:00:57.5]} 30. Rb7 {[%clk 0:01:23.4]} 30... Rf6 {[%clk
0:00:58]} 31. Rcc7 {[%clk 0:01:23.9]} 31... h5 {[%clk 0:00:59.1]} 32. h4 {[%clk
0:01:24.5]} 32... Kg8 {[%clk 0:01:00.1]} 33. Kg2 {[%clk 0:01:22.9]} 33... Kg7
{[%clk 0:01:00.2]} 34. Kf1 {[%clk 0:01:21.6]} 34... Kg8 {[%clk 0:01:01.4]} 35.
Ke1 {[%clk 0:01:23]} 35... Kg7 {[%clk 0:01:02.5]} 36. Kd2 {[%clk 0:01:24]} 36...
Kg8 {[%clk 0:01:03.6]} 37. Ke3 {[%clk 0:01:25.3]} 37... Kg7 {[%clk 0:01:00.8]}
38. Kf4 {[%clk 0:01:26.2]} 38... Kg8 {[%clk 0:01:01.9]} 39. f3 {[%clk
0:01:25.9]} 39... exf3 {[%clk 0:01:02.4]} 40. exf3 {[%clk 0:01:27.8]} 40... Kg7
{[%clk 0:01:03.5]} 41. Rb4 {[%clk 0:01:12.6]} 41... Kg8 {[%clk 0:01:03.1]} 42.
Rbc4 {[%clk 0:01:13.2]} 42... Re6 {[%clk 0:00:58.9]} 43. R4c6 {[%clk 0:01:12.3]}
43... Re1 {[%clk 0:00:54.9]} 44. Rxg6+ {[%clk 0:01:12.3]} 44... Kf8 {[%clk
0:00:55.3]} 45. Rf6 {[%clk 0:01:13.2]} 45... Re7 {[%clk 0:00:55]} 46. Rxe7
{[%clk 0:01:12.8]} 46... Kxe7 {[%clk 0:00:56.9]} 47. Rxf7+ {[%clk 0:01:14.2]}
47... Kxf7 {[%clk 0:00:58.8]} 48. Kxf5 {[%clk 0:01:15.7]} 1-0

[Event "*** Titled Tuesday 3|2 Blitz"]
[Site "Chess.com"]
[Date "2015.06.02"]
[Round "8"]
[White "megarompa"]
[Black "VovAn1991"]
[Result "1-0"]
[WhiteElo "2695"]
[BlackElo "2463"]
[TimeControl "180+2"]
[EndTime "12:41:14 PDT"]
[Termination "megarompa won by resignation"]

1. d4 {[%clk 0:02:41.3]} 1... Nf6 {[%clk 0:02:57.1]} 2. Bg5 {[%clk 0:02:41.2]}
2... Ne4 {[%clk 0:02:55.9]} 3. Bf4 {[%clk 0:02:41.2]} 3... c5 {[%clk 0:02:57]}
4. f3 {[%clk 0:02:42.4]} 4... Qa5+ {[%clk 0:02:58]} 5. c3 {[%clk 0:02:42.8]}
5... Nf6 {[%clk 0:02:58.3]} 6. Nd2 {[%clk 0:02:44.4]} 6... cxd4 {[%clk
0:02:58.8]} 7. Nb3 {[%clk 0:02:45.7]} 7... Qd8 {[%clk 0:02:59.9]} 8. cxd4 {[%clk
0:02:46.1]} 8... d5 {[%clk 0:02:59]} 9. e3 {[%clk 0:02:46.7]} 9... Nc6 {[%clk
0:02:59.1]} 10. Rc1 {[%clk 0:02:47.6]} 10... e6 {[%clk 0:02:59]} 11. Bd3 {[%clk
0:02:47.2]} 11... Bb4+ {[%clk 0:02:57.2]} 12. Kf2 {[%clk 0:02:46]} 12... O-O
{[%clk 0:02:59.1]} 13. Ne2 {[%clk 0:02:46.2]} 13... Nh5 {[%clk 0:02:58.3]} 14.
Bg3 {[%clk 0:02:45.5]} 14... f6 {[%clk 0:02:39.9]} 15. Qc2 {[%clk 0:02:42.5]}
15... g6 {[%clk 0:02:38.8]} 16. a3 {[%clk 0:02:41.4]} 16... Be7 {[%clk
0:02:36.4]} 17. Nf4 {[%clk 0:02:38.3]} 17... Nxf4 {[%clk 0:02:36.4]} 18. Bxf4
{[%clk 0:02:37]} 18... Rf7 {[%clk 0:02:15.3]} 19. Rhe1 {[%clk 0:02:30.1]} 19...
e5 {[%clk 0:02:14.3]} 20. Bg3 {[%clk 0:02:31.3]} 20... a6 {[%clk 0:02:13.7]} 21.
Kg1 {[%clk 0:02:32]} 21... Bd6 {[%clk 0:02:09.6]} 22. Kh1 {[%clk 0:02:29.3]}
22... Kh8 {[%clk 0:01:39.5]} 23. e4 {[%clk 0:02:21.2]} 23... dxe4 {[%clk
0:01:37.7]} 24. Bxe4 {[%clk 0:02:20.3]} 24... Nxd4 {[%clk 0:01:32.1]} 25. Nxd4
{[%clk 0:02:19.2]} 25... exd4 {[%clk 0:01:34]} 26. Bf2 {[%clk 0:02:18.7]} 26...
Be5 {[%clk 0:01:30.3]} 27. Rcd1 {[%clk 0:02:19.8]} 27... Be6 {[%clk 0:01:10.9]}
28. f4 {[%clk 0:02:13.2]} 28... Bxf4 {[%clk 0:01:09.7]} 29. Rxd4 {[%clk
0:02:14.1]} 29... Rd7 {[%clk 0:01:02.2]} 30. Bxb7 {[%clk 0:02:02.8]} 30... Rb8
{[%clk 0:00:53.3]} 31. Rxf4 {[%clk 0:01:57]} 31... Rdxb7 {[%clk 0:00:47]} 32.
Rxe6 {[%clk 0:01:50.8]} 32... Rxb2 {[%clk 0:00:47]} 33. Qe4 {[%clk 0:01:50.7]}
33... Rb1+ {[%clk 0:00:37.9]} 34. Bg1 {[%clk 0:01:46.7]} 34... Qd1 {[%clk
0:00:35]} 35. Re8+ {[%clk 0:01:47.6]} 35... Kg7 {[%clk 0:00:25.6]} 36. Qe7+
{[%clk 0:01:44]} 36... Kh6 {[%clk 0:00:26.6]} 37. Rh4+ {[%clk 0:01:38.3]} 37...
Kg5 {[%clk 0:00:27.4]} 38. Qe3+ {[%clk 0:01:27.4]} 38... Kxh4 {[%clk 0:00:23]}
39. Qh6+ {[%clk 0:01:24.9]} 39... Kg4 {[%clk 0:00:17.6]} 40. Re4+ {[%clk
0:01:21.7]} 1-0

[Event "*** Titled Tuesday 3|2 Blitz"]
[Site "Chess.com"]
[Date "2015.06.02"]
[Round "8"]
[White "JustaTrickstar"]
[Black "kleinebeer98"]
[Result "1/2-1/2"]
[WhiteElo "2430"]
[BlackElo "2281"]
[TimeControl "180+2"]
[EndTime "12:41:15 PDT"]
[Termination "Game drawn - insufficient material"]

1. d4 {[%clk 0:03:01.9]} 1... Nf6 {[%clk 0:03:00]} 2. c4 {[%clk 0:03:02.2]} 2...
c6 {[%clk 0:02:59.7]} 3. Nc3 {[%clk 0:03:02.7]} 3... d5 {[%clk 0:03:00.5]} 4.
Nf3 {[%clk 0:03:02.8]} 4... e6 {[%clk 0:03:01.1]} 5. e3 {[%clk 0:03:02.6]} 5...
Nbd7 {[%clk 0:02:58.1]} 6. Qc2 {[%clk 0:03:03.6]} 6... Bd6 {[%clk 0:02:57.8]} 7.
Bd3 {[%clk 0:03:04.6]} 7... O-O {[%clk 0:02:57.4]} 8. O-O {[%clk 0:03:05.7]}
8... dxc4 {[%clk 0:02:55]} 9. Bxc4 {[%clk 0:03:06.6]} 9... e5 {[%clk 0:02:54.9]}
10. Rd1 {[%clk 0:02:59.3]} 10... Qc7 {[%clk 0:02:51.5]} 11. h3 {[%clk
0:02:58.8]} 11... exd4 {[%clk 0:02:44.9]} 12. Nxd4 {[%clk 0:02:58.8]} 12... Ne5
{[%clk 0:02:41.3]} 13. Be2 {[%clk 0:02:55.8]} 13... a6 {[%clk 0:02:37.8]} 14. f4
{[%clk 0:02:52.3]} 14... Ng6 {[%clk 0:02:37.5]} 15. Bf3 {[%clk 0:02:53.3]} 15...
Nh4 {[%clk 0:02:30.2]} 16. Be2 {[%clk 0:02:52.3]} 16... Re8 {[%clk 0:02:28.4]}
17. Nf3 {[%clk 0:02:38.9]} 17... Nxf3+ {[%clk 0:02:12.6]} 18. Bxf3 {[%clk
0:02:40.8]} 18... Bc5 {[%clk 0:02:14.5]} 19. Ne4 {[%clk 0:02:35.5]} 19... Nxe4
{[%clk 0:02:12.2]} 20. Bxe4 {[%clk 0:02:36.6]} 20... Qb6 {[%clk 0:02:00.9]} 21.
Bxh7+ {[%clk 0:02:36.5]} 21... Kh8 {[%clk 0:02:02.2]} 22. Bf5 {[%clk 0:02:35.1]}
22... Bxe3+ {[%clk 0:02:00.8]} 23. Kh1 {[%clk 0:02:34.8]} 23... Bxc1 {[%clk
0:01:52.8]} 24. Raxc1 {[%clk 0:02:33.3]} 24... Qe3 {[%clk 0:01:37.6]} 25. Bxc8
{[%clk 0:02:06.7]} 25... Raxc8 {[%clk 0:01:39.5]} 26. Qf5 {[%clk 0:02:07.6]}
26... Qe6 {[%clk 0:01:36.5]} 27. Qxe6 {[%clk 0:02:03.2]} 27... Rxe6 {[%clk
0:01:35.3]} 28. Rd7 {[%clk 0:02:03.9]} 28... Rf6 {[%clk 0:01:27.5]} 29. Rxb7
{[%clk 0:02:02.6]} 29... Rxf4 {[%clk 0:01:27.9]} 30. Rb6 {[%clk 0:02:03.6]}
30... Ra4 {[%clk 0:01:21.2]} 31. a3 {[%clk 0:01:56.4]} 31... c5 {[%clk
0:01:22.1]} 32. Rc3 {[%clk 0:01:49.7]} 32... Ra5 {[%clk 0:01:14.6]} 33. b4
{[%clk 0:01:44.8]} 33... Rb5 {[%clk 0:01:07.9]} 34. Rxb5 {[%clk 0:01:44.8]}
34... axb5 {[%clk 0:01:09.8]} 35. Rxc5 {[%clk 0:01:42.7]} 35... Ra8 {[%clk
0:01:10.9]} 36. Rxb5 {[%clk 0:01:41.3]} 36... Rxa3 {[%clk 0:01:12]} 37. Rf5
{[%clk 0:01:39.1]} 37... Rb3 {[%clk 0:01:12.2]} 38. Rf4 {[%clk 0:01:38.9]} 38...
Kh7 {[%clk 0:01:11.6]} 39. h4 {[%clk 0:01:39.7]} 39... f5 {[%clk 0:01:10.7]} 40.
g4 {[%clk 0:01:14.6]} 40... fxg4 {[%clk 0:01:06.2]} 41. Rxg4 {[%clk 0:01:14.6]}
41... Kh6 {[%clk 0:01:07.3]} 42. Kg2 {[%clk 0:01:11.6]} 42... Kh5 {[%clk
0:01:08.2]} 43. Rc4 {[%clk 0:01:11.3]} 43... g5 {[%clk 0:01:07.3]} 44. hxg5
{[%clk 0:01:12.4]} 44... Kxg5 {[%clk 0:01:09.2]} 45. Kf2 {[%clk 0:01:14.1]}
45... Kf5 {[%clk 0:01:10.2]} 46. Ke2 {[%clk 0:01:15.6]} 46... Ke5 {[%clk
0:01:11.3]} 47. Kd2 {[%clk 0:01:11]} 47... Kd5 {[%clk 0:01:11]} 48. Rc5+ {[%clk
0:01:10.1]} 48... Kd4 {[%clk 0:01:11.4]} 49. Rh5 {[%clk 0:01:10.1]} 49... Rxb4
{[%clk 0:01:11.7]} 50. Rh4+ {[%clk 0:01:11.4]} 50... Kc5 {[%clk 0:01:12.9]} 51.
Rxb4 {[%clk 0:01:13.3]} 51... Kxb4 {[%clk 0:01:14.1]} 1/2-1/2

[Event "*** Titled Tuesday 3|2 Blitz"]
[Site "Chess.com"]
[Date "2015.06.02"]
[Round "8"]
[White "Aragon"]
[Black "MartinZumsande"]
[Result "0-1"]
[WhiteElo "2112"]
[BlackElo "2303"]
[TimeControl "180+2"]
[EndTime "12:41:35 PDT"]
[Termination "MartinZumsande won by resignation"]

1. e4 {[%clk 0:03:01.9]} 1... e6 {[%clk 0:03:00.6]} 2. c4 {[%clk 0:03:01.4]}
2... c5 {[%clk 0:02:57]} 3. Nc3 {[%clk 0:03:01.6]} 3... Nc6 {[%clk 0:02:57.7]}
4. g3 {[%clk 0:02:59.1]} 4... g6 {[%clk 0:02:58.6]} 5. Bg2 {[%clk 0:02:59.6]}
5... d6 {[%clk 0:02:59.6]} 6. Nge2 {[%clk 0:02:58.9]} 6... Bg7 {[%clk
0:03:00.6]} 7. O-O {[%clk 0:02:58.8]} 7... Nge7 {[%clk 0:03:01.5]} 8. d3 {[%clk
0:02:59.6]} 8... O-O {[%clk 0:03:01.9]} 9. Be3 {[%clk 0:02:59.8]} 9... Nd4
{[%clk 0:02:55.4]} 10. Rb1 {[%clk 0:02:59.4]} 10... Nec6 {[%clk 0:02:55.5]} 11.
a3 {[%clk 0:02:59.6]} 11... a5 {[%clk 0:02:54.9]} 12. Nb5 {[%clk 0:02:58.1]}
12... Nxb5 {[%clk 0:02:45.4]} 13. cxb5 {[%clk 0:02:58.6]} 13... Nd4 {[%clk
0:02:47.3]} 14. Nxd4 {[%clk 0:02:57.9]} 14... cxd4 {[%clk 0:02:47.7]} 15. Bf4
{[%clk 0:02:56.6]} 15... Qb6 {[%clk 0:02:43.8]} 16. a4 {[%clk 0:02:56.1]} 16...
e5 {[%clk 0:02:43.7]} 17. Bg5 {[%clk 0:02:54.6]} 17... Be6 {[%clk 0:02:43.2]}
18. f4 {[%clk 0:02:26.6]} 18... f6 {[%clk 0:02:39.4]} 19. f5 {[%clk 0:02:23.9]}
19... Bd7 {[%clk 0:02:11]} 20. Qb3+ {[%clk 0:02:15]} 20... Kh8 {[%clk
0:02:11.6]} 21. Bd2 {[%clk 0:02:11.1]} 21... Be8 {[%clk 0:02:09.8]} 22. fxg6
{[%clk 0:02:02.7]} 22... hxg6 {[%clk 0:02:10.4]} 23. Bh3 {[%clk 0:02:01.1]}
23... Bf7 {[%clk 0:02:07]} 24. Be6 {[%clk 0:02:00.3]} 24... Qc7 {[%clk
0:02:03.7]} 25. Rfc1 {[%clk 0:01:52.1]} 25... Qe7 {[%clk 0:02:04.4]} 26. Bd5
{[%clk 0:01:49.6]} 26... f5 {[%clk 0:02:03.8]} 27. b6 {[%clk 0:01:48.6]} 27...
fxe4 {[%clk 0:02:03.2]} 28. Rc7 {[%clk 0:01:40.1]} 28... Bxd5 {[%clk 0:02:02]}
29. Qxd5 {[%clk 0:01:40.2]} 29... Qf6 {[%clk 0:02:00.3]} 30. Qxb7 {[%clk
0:00:26.1]} 30... e3 {[%clk 0:01:47.8]} 31. Rxg7 {[%clk 0:00:13.5]} 31... Qxg7
{[%clk 0:01:44.3]} 32. Qxg7+ {[%clk 0:00:14.2]} 32... Kxg7 {[%clk 0:01:45.3]}
33. b7 {[%clk 0:00:13.9]} 33... Rab8 {[%clk 0:01:42.5]} 34. Bxa5 {[%clk
0:00:13.8]} 34... Rxb7 {[%clk 0:01:40.8]} 35. b4 {[%clk 0:00:14.5]} 35... Rf2
{[%clk 0:01:38.4]} 36. Rf1 {[%clk 0:00:11.7]} 36... Ra2 {[%clk 0:01:35.3]} 37.
Re1 {[%clk 0:00:09]} 37... Rxa4 {[%clk 0:01:35.6]} 38. Kg2 {[%clk 0:00:10.4]}
38... Ra3 {[%clk 0:01:36.2]} 39. Rd1 {[%clk 0:00:10.1]} 39... Rb3 {[%clk
0:01:32.5]} 40. Kf3 {[%clk 0:00:10.9]} 40... d5 {[%clk 0:01:33.6]} 41. h4 {[%clk
0:00:10.9]} 41... Rf7+ {[%clk 0:01:34]} 42. Kg4 {[%clk 0:00:11]} 42... e2 {[%clk
0:01:30]} 43. Re1 {[%clk 0:00:11.5]} 43... Rb2 {[%clk 0:01:31.3]} 44. Bb6 {[%clk
0:00:10.3]} 44... Rf1 {[%clk 0:01:30.7]} 0-1

[Event "*** Titled Tuesday 3|2 Blitz"]
[Site "Chess.com"]
[Date "2015.06.02"]
[Round "8"]
[White "oggy1984"]
[Black "1random"]
[Result "1-0"]
[WhiteElo "2318"]
[BlackElo "2047"]
[TimeControl "180+2"]
[EndTime "12:41:45 PDT"]
[Termination "oggy1984 won by checkmate"]

1. d4 {[%clk 0:02:54.4]} 1... Nf6 {[%clk 0:02:59.2]} 2. c4 {[%clk 0:02:47.6]}
2... e6 {[%clk 0:02:54.9]} 3. Nc3 {[%clk 0:02:44.3]} 3... Bb4 {[%clk 0:02:49.8]}
4. Qc2 {[%clk 0:02:40.4]} 4... O-O {[%clk 0:02:50.2]} 5. e4 {[%clk 0:02:27.2]}
5... d5 {[%clk 0:02:50.1]} 6. e5 {[%clk 0:02:24.1]} 6... Ne4 {[%clk 0:02:50.8]}
7. a3 {[%clk 0:02:21.9]} 7... Bxc3+ {[%clk 0:02:45.6]} 8. bxc3 {[%clk
0:02:18.9]} 8... c5 {[%clk 0:02:47.2]} 9. Bb2 {[%clk 0:02:15.9]} 9... Nc6 {[%clk
0:02:33.7]} 10. O-O-O {[%clk 0:02:11.9]} 10... cxd4 {[%clk 0:02:16.1]} 11. cxd4
{[%clk 0:02:06.1]} 11... Na5 {[%clk 0:01:50.3]} 12. f3 {[%clk 0:02:01.5]} 12...
dxc4 {[%clk 0:01:08.8]} 13. fxe4 {[%clk 0:01:55.1]} 13... Bd7 {[%clk 0:01:03]}
14. Kb1 {[%clk 0:01:50.7]} 14... Qe8 {[%clk 0:01:03.1]} 15. Qc3 {[%clk
0:01:45.3]} 15... b6 {[%clk 0:01:02.7]} 16. Nf3 {[%clk 0:01:41.9]} 16... Ba4
{[%clk 0:01:03.3]} 17. Re1 {[%clk 0:01:37.6]} 17... Bb3 {[%clk 0:01:01.3]} 18.
d5 {[%clk 0:01:32.5]} 18... Nb7 {[%clk 0:00:58.8]} 19. Bxc4 {[%clk 0:01:27.7]}
19... Bxc4 {[%clk 0:00:56.3]} 20. Qxc4 {[%clk 0:01:25.2]} 20... Rc8 {[%clk
0:00:58.2]} 21. Qe2 {[%clk 0:01:21.1]} 21... Nc5 {[%clk 0:00:56.3]} 22. Rc1
{[%clk 0:01:12.2]} 22... Qa4 {[%clk 0:00:55.3]} 23. Nd4 {[%clk 0:01:07.1]} 23...
Rfd8 {[%clk 0:00:40.4]} 24. Qf3 {[%clk 0:01:03.3]} 24... Nd7 {[%clk 0:00:30.1]}
25. dxe6 {[%clk 0:01:00.1]} 25... Nxe5 {[%clk 0:00:29.2]} 26. exf7+ {[%clk
0:00:57.2]} 26... Nxf7 {[%clk 0:00:27.6]} 27. Ne6 {[%clk 0:00:53.5]} 27... Rxc1+
{[%clk 0:00:26.6]} 28. Rxc1 {[%clk 0:00:44.6]} 28... Re8 {[%clk 0:00:25.2]} 29.
Rc7 {[%clk 0:00:38]} 29... Ne5 {[%clk 0:00:08.8]} 30. Rxg7+ {[%clk 0:00:33.7]}
30... Kh8 {[%clk 0:00:09.1]} 31. Rc7 {[%clk 0:00:28.4]} 31... Rg8 {[%clk
0:00:08.5]} 32. Bxe5+ {[%clk 0:00:24.3]} 32... Rg7 {[%clk 0:00:09.1]} 33. Qf8#
{[%clk 0:00:22.4]} 1-0

[Event "*** Titled Tuesday 3|2 Blitz"]
[Site "Chess.com"]
[Date "2015.06.02"]
[Round "8"]
[White "aripov96"]
[Black "amandarm"]
[Result "1-0"]
[WhiteElo "2254"]
[BlackElo "2012"]
[TimeControl "180+2"]
[EndTime "12:41:54 PDT"]
[Termination "aripov96 won by resignation"]

1. Nf3 {[%clk 0:03:01.9]} 1... c5 {[%clk 0:02:53.5]} 2. c4 {[%clk 0:03:02.4]}
2... e6 {[%clk 0:02:54.5]} 3. g3 {[%clk 0:03:02.3]} 3... Nf6 {[%clk 0:02:55.5]}
4. Bg2 {[%clk 0:03:03.5]} 4... Nc6 {[%clk 0:02:57.2]} 5. O-O {[%clk 0:03:04.6]}
5... d6 {[%clk 0:02:57.8]} 6. d4 {[%clk 0:03:05.7]} 6... Be7 {[%clk 0:02:58.4]}
7. d5 {[%clk 0:02:58.1]} 7... exd5 {[%clk 0:02:57.6]} 8. cxd5 {[%clk 0:02:59.3]}
8... Nb8 {[%clk 0:02:58.5]} 9. Nc3 {[%clk 0:02:59.6]} 9... O-O {[%clk
0:02:53.8]} 10. e4 {[%clk 0:03:00]} 10... Nbd7 {[%clk 0:02:52.3]} 11. Re1 {[%clk
0:02:55.1]} 11... a6 {[%clk 0:02:51.5]} 12. a4 {[%clk 0:02:55.6]} 12... Rb8
{[%clk 0:02:50.3]} 13. e5 {[%clk 0:02:36.5]} 13... Ng4 {[%clk 0:02:33.4]} 14.
exd6 {[%clk 0:02:27.1]} 14... Bxd6 {[%clk 0:02:32.7]} 15. Ne4 {[%clk 0:02:27.1]}
15... Bc7 {[%clk 0:02:11.2]} 16. Nfg5 {[%clk 0:01:49.8]} 16... Ndf6 {[%clk
0:02:01.1]} 17. h3 {[%clk 0:01:39.1]} 17... Nxe4 {[%clk 0:01:56.1]} 18. Nxe4
{[%clk 0:01:35.4]} 18... Ne5 {[%clk 0:01:46.1]} 19. Nxc5 {[%clk 0:01:21.2]}
19... Bb6 {[%clk 0:01:27.6]} 20. b4 {[%clk 0:01:07.8]} 20... Nc4 {[%clk
0:01:20.7]} 21. Qd4 {[%clk 0:01:04.7]} 21... Nd6 {[%clk 0:01:17.2]} 22. Bb2
{[%clk 0:01:03]} 22... f6 {[%clk 0:01:15]} 23. a5 {[%clk 0:00:43.5]} 23... Ba7
{[%clk 0:01:15.4]} 24. Qf4 {[%clk 0:00:38.3]} 24... Nf7 {[%clk 0:01:01.8]} 25.
Ne6 {[%clk 0:00:36.7]} 25... Bxe6 {[%clk 0:01:02.6]} 26. dxe6 {[%clk 0:00:37.7]}
26... Ne5 {[%clk 0:01:03.6]} 27. Rad1 {[%clk 0:00:34.4]} 27... Qe7 {[%clk
0:01:00.9]} 28. Rf1 {[%clk 0:00:30.1]} 28... Kh8 {[%clk 0:00:57.1]} 29. Bxe5
{[%clk 0:00:30.5]} 29... fxe5 {[%clk 0:00:57.7]} 30. Qxe5 {[%clk 0:00:32.4]}
30... Qxb4 {[%clk 0:00:47.3]} 31. Rd7 {[%clk 0:00:31.6]} 31... Rg8 {[%clk
0:00:46.1]} 32. e7 {[%clk 0:00:29.9]} 32... Rbe8 {[%clk 0:00:44]} 33. Bd5 {[%clk
0:00:30.1]} 33... Bb8 {[%clk 0:00:43.7]} 34. Qe6 {[%clk 0:00:28.3]} 34... Qc3
{[%clk 0:00:34.2]} 35. Qxg8+ {[%clk 0:00:28]} 35... Rxg8 {[%clk 0:00:34.9]} 36.
Bxg8 {[%clk 0:00:29.3]} 36... Ba7 {[%clk 0:00:29.8]} 37. Kh2 {[%clk 0:00:23.9]}
37... Qe5 {[%clk 0:00:25.8]} 38. Be6 {[%clk 0:00:20.1]} 1-0